bitfinex/quotes_SOLUSD_20250817
["timestamp","ask_amount","ask_price","bid_price","bid_amount"]
[1755457230096,0.06,192.42,192.41,53.69277139]
[1755457230974,0.06,192.42,192.41,47.50317414]
[1755457231211,0.06,192.42,192.41,53.69277139]
[1755457231380,0.06,192.42,192.41,102.19304789]
[1755457233378,0.06,192.42,192.41,101.51304789]
[1755457233573,0.06,192.42,192.41,95.32345064]
[1755457233917,0.635975,192.43,192.42,15.10621557]
[1755457234083,0.635975,192.43,192.42,21.29581282]
[1755457234273,0.635975,192.43,192.42,70.25581282]
[1755457234707,0.635975,192.43,192.42,75.45277779]
[1755457234920,0.635975,192.43,192.42,76.13277779]
[1755457235086,0.635975,192.43,192.42,75.45277779]
[1755457235412,0.635975,192.43,192.42,76.13277779]
[1755457236086,0.635975,192.43,192.42,78.21399779]
[1755457238281,0.06,192.46,192.45,46.30237041]
[1755457238489,0.06,192.46,192.45,101.37196766]
[1755457238903,0.06,192.46,192.45,102.05196766]
[1755457239916,132.5,192.61,192.46,15.10621557]
[1755457240104,0.67,192.56,192.55,6.18959725]
[1755457240426,30.67,192.56,192.55,55.02959725]
[1755457240621,30.67,192.56,192.55,48.84]
[1755457240907,0.67,192.56,192.55,48.84]
[1755457241619,0.67,192.56,192.55,55.02959725]
[1755457241986,0.67,192.56,192.55,48.84]
[1755457244315,0.67,192.56,192.53,32.18959725]
[1755457244623,0.67,192.56,192.54,48.78]
[1755457245311,0.69,192.55,192.54,48.78]
[1755457245512,0.69,192.55,192.54,54.96959725]
[1755457246482,0.69,192.55,192.54,48.78]
[1755457247918,0.69,192.55,192.53,32.18959725]
[1755457248126,0.69,192.55,192.54,48.66]
[1755457249609,0.06,192.6,192.54,48.66]
[1755457249610,0.06,192.6,192.55,15.10621557]
[1755457249820,0.06,192.6,192.59,6.18959725]
[1755457250126,0.06,192.6,192.59,54.80959725]
[1755457250624,0.06,192.6,192.59,48.62]
[1755457253441,0.75,192.6,192.59,48.62]
[1755457253597,0.06,192.6,192.59,48.62]
[1755457254027,0.06,192.6,192.59,54.80959725]
[1755457254210,0.06,192.6,192.59,48.62]
[1755457254411,0.06,192.6,192.59,54.80959725]
[1755457258433,0.06,192.6,192.59,52.58437204]
[1755457259236,0.06,192.6,192.59,73.56296519]
[1755457260114,0.06,192.6,192.59,69.59859315]
[1755457260315,0.06,192.6,192.59,75.76332264]
[1755457261324,0.06,192.6,192.59,76.28256039]
[1755457261531,0.06,192.6,192.59,70.1178309]
[1755457261712,0.06,192.6,192.59,27.66256039]
[1755457261916,0.06,192.6,192.59,76.02256039]
[1755457262131,0.06,192.6,192.59,75.50332264]
[1755457262331,0.06,192.6,192.59,15.10621557]
[1755457262522,0.06,192.6,192.59,69.61094506]
[1755457263222,0.06,192.6,192.59,74.80332264]
[1755457263644,0.06,192.6,192.59,75.48332264]
[1755457265527,0.06,192.6,192.59,69.31859315]
[1755457265727,0.06,192.6,192.59,75.48332264]
[1755457266365,0.75,192.6,192.58,6.189597]
[1755457266540,0.75,192.6,192.59,54.42472949]
[1755457266717,0.75,192.6,192.59,69.53094506]
[1755457266718,0.06,192.6,192.59,69.53094506]
[1755457266921,0.06,192.6,192.59,70.21094506]
[1755457267330,0.06,192.6,192.59,75.40332264]
[1755457268854,0.69,192.73,192.63,41.10621557]
[1755457269045,0.69,192.73,192.59,79.44278053]
[1755457269046,0.69,192.73,192.72,6.16472949]
[1755457269225,0.69,192.73,192.72,54.36472949]
[1755457270263,5.18619144,192.82,192.72,54.36472949]
[1755457270264,0.69,192.76,192.72,54.36472949]
[1755457270561,3.81627866,192.81,192.75,6.16472949]
[1755457270856,6.16472949,192.83,192.77,6.16472949]
[1755457271148,6.85472949,192.82,192.78,48.16]
[1755457271346,41.35194388,192.79,192.7,6.164729]
[1755457271551,41.35194388,192.79,192.65,0.68]
[1755457271552,6.16472949,192.76,192.71,48.14]
[1755457271766,6.16472949,192.74,192.72,48.12]
[1755457271965,0.69,192.73,192.72,48.12]
[1755457273154,0.69,192.76,192.72,54.28472949]
[1755457273460,30.69,192.79,192.75,6.16472949]
[1755457273619,30.69,192.79,192.78,6.16472949]
[1755457273620,30.0,192.79,192.78,6.16472949]
[1755457273826,30.0,192.79,192.78,48.08]
[1755457274024,30.0,192.79,192.78,54.24472949]
[1755457274246,30.69,192.79,192.78,54.24472949]
[1755457274568,0.69,192.81,192.78,54.24472949]
[1755457274766,0.69,192.81,192.79,6.16472949]
[1755457274934,0.69,192.81,192.8,48.06]
[1755457280363,0.69,192.81,192.73,6.16473]
[1755457280364,4.64722036,192.81,192.73,6.16473]
[1755457280541,4.64722036,192.81,192.68,0.68]
[1755457280542,3.95722036,192.75,192.65,0.68]
[1755457280877,3.95722036,192.72,192.67,3.95722036]
[1755457281063,0.7,192.74,192.68,51.85722036]
[1755457281287,4.65722036,192.74,192.68,47.9]
[1755457281566,0.7,192.74,192.68,47.9]
[1755457281861,3.95722036,192.73,192.68,51.85722036]
[1755457282047,0.7,192.72,192.68,47.9]
[1755457282363,0.7,192.72,192.69,47.88]
[1755457282664,0.7,192.74,192.69,47.88]
[1755457282864,0.7,192.73,192.7,3.95722036]
[1755457283372,3.95722036,192.71,192.69,47.88]
[1755457283529,3.95722036,192.73,192.69,47.88]
[1755457283728,0.7,192.75,192.69,47.88]
[1755457283729,0.7,192.75,192.69,48.56]
[1755457283952,25.16621557,192.83,192.69,48.56]
[1755457283953,3.95722036,192.74,192.72,26.0]
[1755457284155,3.95722036,192.74,192.73,47.84]
[1755457284361,0.7,192.77,192.73,47.84]
[1755457284566,41.16621557,192.83,192.73,47.84]
[1755457284567,0.7,192.8,192.74,6.15967613]
[1755457284765,6.85967613,192.8,192.76,26.0]
[1755457284944,6.85967613,192.8,192.77,47.82]
[1755457285350,0.7,192.8,192.77,47.82]
[1755457285556,6.15967613,192.81,192.77,47.82]
[1755457286364,6.15967613,192.8,192.77,47.82]
[1755457286865,6.15967613,192.81,192.77,47.82]
[1755457287065,6.15967613,192.8,192.77,47.82]
[1755457287271,6.15967613,192.78,192.77,47.82]
[1755457287475,6.85967613,192.78,192.77,47.82]
[1755457288182,12.04696088,192.78,192.63,5.191568]
[1755457288472,6.15967613,192.71,192.67,0.68]
[1755457288662,0.7,192.77,192.68,73.74]
[1755457288871,0.7,192.77,192.68,47.74]
[1755457289047,0.7,192.77,192.71,26.0]
[1755457289374,6.15967613,192.74,192.72,47.72]
[1755457289558,6.15967613,192.76,192.72,48.4]
[1755457289770,0.7,192.79,192.72,48.4]
[1755457289945,6.15967613,192.76,192.72,48.4]
[1755457290140,0.7,192.79,192.73,0.68]
[1755457290354,6.15967613,192.78,192.73,0.68]
[1755457290559,6.15967613,192.79,192.74,6.83967613]
[1755457290850,6.15967613,192.8,192.75,53.85967613]
[1755457291051,6.15967613,192.8,192.75,54.53967613]
[1755457291261,6.91967613,192.81,192.76,6.15967613]
[1755457291469,0.06,192.81,192.77,6.15967613]
[1755457291771,0.06,192.81,192.78,47.68]
[1755457293043,0.06,192.81,192.78,53.83967613]
[1755457293248,0.06,192.81,192.78,47.68]
[1755457293467,0.06,192.81,192.79,6.15967613]
[1755457293775,0.06,192.81,192.8,6.15967613]
[1755457294974,0.06,192.81,192.8,6.83967613]
[1755457295915,0.06,192.81,192.8,32.15967613]
[1755457296252,0.06,192.81,192.8,79.71967613]
[1755457296750,0.76,192.81,192.74,0.68]
[1755457297056,0.76,192.81,192.77,6.15967613]
[1755457297266,6.15967613,192.79,192.74,6.15967613]
[1755457297474,6.15967613,192.79,192.75,47.54]
[1755457297673,6.85967613,192.78,192.72,6.159676]
[1755457297864,6.85967613,192.78,192.73,53.67967613]
[1755457298068,0.7,192.77,192.73,79.67967613]
[1755457298570,0.06,192.81,192.74,47.5]
[1755457298571,6.85967613,192.76,192.74,47.5]
[1755457299086,6.15967613,192.77,192.74,47.5]
[1755457299252,6.15967613,192.78,192.74,47.5]
[1755457299453,6.85967613,192.76,192.74,47.5]
[1755457299668,0.7,192.75,192.74,47.5]
[1755457300078,6.85967613,192.75,192.62,5.1913338]
[1755457300278,6.85967613,192.74,192.69,6.15967613]
[1755457300478,6.85967613,192.76,192.71,6.15967613]
[1755457300685,0.7,192.75,192.7,47.46]
[1755457300875,11.34749031,192.76,192.7,47.46]
[1755457301080,0.7,192.74,192.7,47.46]
[1755457301302,0.7,192.74,192.71,6.15967613]
[1755457301480,0.7,192.74,192.7,47.46]
[1755457301670,0.7,192.74,192.7,53.61967613]
[1755457301999,0.7,192.73,192.7,53.61967613]
[1755457302195,0.7,192.75,192.7,53.61967613]
[1755457302385,0.7,192.74,192.7,53.61967613]
[1755457302905,6.15967613,192.72,192.7,47.46]
[1755457303071,6.85967613,192.72,192.7,47.46]
[1755457303267,0.7,192.71,192.67,6.15967613]
[1755457303471,0.7,192.71,192.68,47.4]
[1755457303768,0.7,192.7,192.68,47.4]
[1755457303967,0.7,192.69,192.62,0.68]
[1755457304221,6.15967613,192.66,192.63,6.159677]
[1755457304378,6.15967613,192.64,192.63,6.159677]
[1755457304568,6.15967613,192.65,192.62,47.38]
[1755457304778,0.7,192.66,192.62,53.53967613]
[1755457305001,0.71,192.68,192.62,53.53967613]
[1755457305274,0.71,192.68,192.63,6.15967613]
[1755457305486,6.15967613,192.69,192.64,6.15967613]
[1755457305691,0.71,192.71,192.66,6.15967613]
[1755457305900,0.71,192.7,192.64,0.68]
[1755457306202,0.71,192.7,192.65,6.15967613]
[1755457306375,6.15967613,192.71,192.66,47.34]
[1755457306575,6.15967613,192.71,192.6,0.03]
[1755457306576,6.15967613,192.67,192.6,0.03]
[1755457306771,6.15967613,192.65,192.61,47.32]
[1755457306976,0.71,192.64,192.61,47.32]
[1755457307405,6.15967613,192.67,192.61,53.47967613]
[1755457307604,6.15967613,192.67,192.61,48.0]
[1755457307805,6.15967613,192.66,192.61,47.32]
[1755457308101,0.71,192.65,192.61,53.47967613]
[1755457308504,6.15967613,192.65,192.6,0.03]
[1755457308699,6.15967613,192.63,192.6,47.33]
[1755457308896,0.71,192.62,192.6,47.33]
[1755457309391,6.86967613,192.66,192.6,53.48967613]
[1755457309591,6.86967613,192.66,192.6,47.33]
[1755457309592,6.15967613,192.65,192.6,47.33]
[1755457309796,0.71,192.65,192.6,53.48967613]
[1755457310307,6.15967613,192.63,192.6,47.33]
[1755457310515,0.71,192.62,192.6,47.33]
[1755457310709,6.15967613,192.63,192.6,47.33]
[1755457311008,5.19108167,192.64,192.6,0.03]
[1755457311009,6.86967613,192.61,192.6,0.03]
[1755457312209,0.71,192.61,192.6,0.03]
[1755457312416,6.86967613,192.61,192.6,0.03]
[1755457313525,0.71,192.64,192.6,6.18967613]
[1755457313690,6.86967613,192.66,192.61,6.15967613]
[1755457313886,5.19022162,192.67,192.61,6.15967613]
[1755457314104,0.71,192.65,192.61,6.15967613]
[1755457314302,0.71,192.65,192.6,0.03]
[1755457314503,0.71,192.64,192.6,6.18967613]
[1755457314907,26.0,192.67,192.61,6.15967613]
[1755457315099,6.15967613,192.66,192.61,6.15967613]
[1755457315427,132.5,192.67,192.63,6.15967613]
[1755457315732,132.5,192.67,192.64,6.15967613]
[1755457316030,133.21,192.67,192.63,6.15967613]
[1755457316197,132.5,192.67,192.63,6.15967613]
[1755457316392,133.21,192.67,192.63,6.15967613]
[1755457317586,142.07628181,192.71,192.65,6.15967613]
[1755457317898,142.07628181,192.71,192.66,6.15967613]
[1755457318104,139.36967613,192.71,192.66,6.15967613]
[1755457318486,139.36967613,192.71,192.61,47.16]
[1755457318487,0.71,192.7,192.65,6.15967613]
[1755457319095,138.65967613,192.71,192.65,6.15967613]
[1755457319297,0.71,192.69,192.65,6.15967613]
[1755457319500,138.65967613,192.71,192.66,6.15967613]
[1755457319718,139.36967613,192.71,192.66,6.15967613]
[1755457320214,6.86967613,192.74,192.69,6.15967613]
[1755457320534,133.21,192.77,192.71,6.15967613]
[1755457320695,6.86967613,192.8,192.74,6.15967613]
[1755457320884,6.86967613,192.8,192.75,6.15967613]
[1755457321086,0.71,192.8,192.77,6.15967613]
[1755457321308,6.15967613,192.82,192.77,6.15967613]
[1755457321513,6.15967613,192.82,192.69,15.62518386]
[1755457321514,5.2464752,192.81,192.67,26.0]
[1755457321714,6.15967613,192.76,192.71,32.15967613]
[1755457321899,6.15967613,192.77,192.72,6.15967613]
[1755457322098,6.86967613,192.77,192.72,6.15967613]
[1755457322514,6.86967613,192.8,192.74,6.15967613]
[1755457322921,0.71,192.8,192.74,6.15967613]
[1755457323229,0.77,192.81,192.73,47.68]
[1755457323400,0.06,192.81,192.74,26.68]
[1755457323592,0.06,192.81,192.8,6.15967613]
[1755457324008,0.06,192.81,192.8,6.83967613]
[1755457324329,0.06,192.81,192.8,32.83967613]
[1755457325399,0.06,192.81,192.8,26.68]
[1755457325607,0.06,192.81,192.8,32.83967613]
[1755457326000,0.06,192.81,192.8,26.68]
[1755457326205,0.06,192.81,192.8,32.83967613]
[1755457326518,0.06,192.81,192.8,32.15967613]
[1755457326694,0.06,192.81,192.71,0.51891443]
[1755457326893,0.06,192.81,192.79,6.15967613]
[1755457327115,0.06,192.81,192.8,6.15967613]
[1755457327318,0.06,192.81,192.8,6.83967613]
[1755457327696,0.77,192.81,192.79,46.88]
[1755457327896,0.71,192.8,192.79,46.88]
[1755457328215,0.06,192.81,192.79,53.03967613]
[1755457328431,0.06,192.81,192.8,6.15967613]
[1755457328605,0.06,192.81,192.79,6.15967613]
[1755457328806,0.06,192.81,192.78,6.15967613]
[1755457329113,0.06,192.81,192.79,6.15967613]
[1755457329314,0.06,192.81,192.8,32.15967613]
[1755457329711,0.06,192.81,192.8,26.68]
[1755457329915,0.06,192.81,192.8,32.15967613]
[1755457331120,0.06,192.81,192.8,32.83967613]
[1755457331325,0.06,192.81,192.8,53.65128588]
[1755457331914,0.06,192.83,192.81,15.10621557]
[1755457332216,0.06,192.83,192.82,68.5445101]
[1755457332407,0.06,192.83,192.82,69.2245101]
[1755457333456,1.17275087,192.86,192.85,26.0]
[1755457333622,12.95162566,193.03,192.85,26.0]
[1755457333623,0.71,192.98,192.89,26.0]
[1755457333812,0.71,192.98,192.95,6.15967613]
[1755457334400,0.71,192.98,192.94,52.87967613]
[1755457334613,0.1,193.01,192.95,6.15967613]
[1755457334812,6.92967613,193.01,192.96,6.15967613]
[1755457335144,0.67,193.0,192.96,6.15967613]
[1755457335344,0.67,193.0,192.94,46.72]
[1755457335345,0.67,193.0,192.95,6.15967613]
[1755457335510,0.67,192.99,192.96,6.15967613]
[1755457336235,0.1,193.01,192.96,6.15967613]
[1755457336403,0.67,193.0,192.96,6.15967613]
[1755457336608,0.67,192.99,192.96,6.15967613]
[1755457336817,0.67,192.98,192.95,6.15967613]
[1755457337016,0.67,192.98,192.94,52.87967613]
[1755457338138,6.25967613,193.01,192.95,6.15967613]
[1755457338346,0.1,193.01,192.96,6.15967613]
[1755457338536,0.77,193.01,192.96,6.15967613]
[1755457338844,0.1,193.01,192.97,6.15967613]
[1755457339063,0.1,193.01,192.98,46.6]
[1755457339229,0.1,193.01,192.99,46.58]
[1755457340639,0.67,193.0,192.99,46.58]
[1755457341038,0.1,193.01,192.99,46.54]
[1755457341243,6.82967613,193.0,192.9,7.499676]
[1755457341548,6.15967613,192.97,192.92,6.15967613]
[1755457341735,0.67,192.96,192.92,6.15967613]
[1755457342044,0.67,192.96,192.93,6.15967613]
[1755457342650,6.82967613,192.98,192.93,6.15967613]
[1755457342851,0.1,193.01,192.95,6.15967613]
[1755457343061,0.1,193.01,192.96,52.67967613]
[1755457343260,0.77,193.01,192.96,52.67967613]
[1755457343624,0.77,193.01,192.96,46.52]
[1755457344068,6.92967613,193.01,192.96,52.67967613]
[1755457344738,0.67,193.0,192.96,52.67967613]
[1755457345769,0.67,193.0,192.94,46.44]
[1755457345770,6.15967613,192.97,192.94,46.44]
[1755457346071,5.18147172,193.0,192.94,46.44]
[1755457346072,6.82967613,192.96,192.94,46.44]
[1755457346382,6.82967613,192.96,192.91,32.15967613]
[1755457346383,0.67,192.95,192.92,26.0]
[1755457346663,5.18147172,193.0,192.85,15.10621557]
[1755457346664,0.67,192.94,192.85,15.10621557]
[1755457346838,6.15967613,192.91,192.86,52.55967613]
[1755457347037,6.15967613,192.91,192.86,46.4]
[1755457347038,6.15967613,192.9,192.86,46.4]
[1755457347242,6.82967613,192.9,192.86,46.4]
[1755457347728,6.82967613,192.89,192.82,15.10621557]
[1755457347935,5.1840366,192.9,192.82,6.15967613]
[1755457348155,6.15967613,192.87,192.83,46.38]
[1755457348352,6.82967613,192.88,192.83,46.38]
[1755457348766,6.15967613,192.9,192.84,6.82967613]
[1755457348942,6.15967613,192.91,192.85,6.15967613]
[1755457349262,6.15967613,192.93,192.87,6.15967613]
[1755457349557,6.82967613,192.94,192.87,46.36]
[1755457349762,6.82967613,192.94,192.89,6.15967613]
[1755457350759,6.15967613,192.98,192.92,6.15967613]
[1755457351056,6.15967613,192.98,192.92,46.32]
[1755457351254,6.15967613,192.95,192.92,46.32]
[1755457351461,6.82967613,192.94,192.92,46.32]
[1755457351642,6.82967613,192.93,192.87,46.3]
[1755457351958,6.15967613,192.88,192.79,46.28]
[1755457352173,6.15967613,192.88,192.82,6.15967613]
[1755457352334,6.15967613,192.89,192.82,0.67]
[1755457352675,6.15967613,192.89,192.83,52.43967613]
[1755457352834,6.15967613,192.88,192.83,52.43967613]
[1755457353368,6.15967613,192.89,192.84,6.15967613]
[1755457353530,36.15967613,192.92,192.86,6.15967613]
[1755457353730,30.0,192.92,192.89,6.15967613]
[1755457353936,30.0,192.92,192.91,6.15967613]
[1755457354239,159.17,192.97,192.91,6.15967613]
[1755457354240,133.17,192.97,192.91,52.39967613]
[1755457354435,0.67,192.97,192.92,6.15967613]
[1755457354672,6.82967613,192.97,192.91,52.39967613]
[1755457354962,0.06,192.94,192.92,6.15967613]
[1755457356054,0.06,192.94,192.91,46.24]
[1755457356055,0.67,192.93,192.91,46.24]
[1755457356256,0.67,192.93,192.9,46.2]
[1755457356442,0.06,192.94,192.87,26.67]
[1755457356443,6.15967613,192.91,192.87,72.2]
[1755457356760,0.67,192.9,192.87,72.2]
[1755457357060,6.15967613,192.91,192.87,72.2]
[1755457357558,6.82967613,192.9,192.87,46.2]
[1755457357937,0.67,192.9,192.87,46.2]
[1755457358862,6.15967613,192.91,192.87,46.2]
[1755457359029,6.82967613,192.91,192.87,46.2]
[1755457359731,6.82967613,192.9,192.87,46.2]
[1755457359929,0.67,192.92,192.87,46.2]
[1755457360230,6.82967613,192.92,192.87,46.2]
[1755457360429,6.82967613,192.92,192.87,52.35967613]
[1755457360628,6.82967613,192.91,192.87,46.2]
[1755457360836,6.15967613,192.88,192.82,32.18967613]
[1755457361053,0.67,192.89,192.85,46.1]
[1755457361257,18.20055507,192.94,192.85,46.1]
[1755457361258,6.82967613,192.88,192.85,46.1]
[1755457361444,0.67,192.88,192.85,46.1]
[1755457362265,6.82967613,192.87,192.83,46.08]
[1755457362431,6.82967613,192.86,192.83,46.08]
[1755457362634,6.15967613,192.84,192.82,0.03]
[1755457362830,0.67,192.85,192.82,0.03]
[1755457363069,6.82967613,192.83,192.82,0.03]
[1755457363234,0.67,192.83,192.82,0.03]
[1755457363434,6.82967613,192.83,192.82,0.03]
[1755457364767,6.15967613,192.85,192.82,0.03]
[1755457364939,21.2658917,192.92,192.82,6.18967613]
[1755457364940,6.15967613,192.87,192.82,6.18967613]
[1755457365334,6.85967613,192.87,192.82,6.18967613]
[1755457365748,5.18439878,192.89,192.82,6.18967613]
[1755457365933,3.40450363,192.9,192.83,0.68]
[1755457366136,6.15967613,192.9,192.83,0.68]
[1755457366337,6.15967613,192.9,192.82,0.03]
[1755457366538,6.15967613,192.89,192.84,6.15967613]
[1755457366735,6.15967613,192.87,192.82,6.18967613]
[1755457366947,0.7,192.86,192.82,0.03]
[1755457367158,6.15967613,192.83,192.82,0.03]
[1755457367552,6.85967613,192.83,192.82,0.03]
[1755457368289,12.04559118,192.83,192.82,0.03]
[1755457368578,15.88033964,192.83,192.82,0.03]
[1755457368937,12.04559118,192.83,192.82,0.03]
[1755457369140,42.04559118,192.83,192.82,0.03]
[1755457369361,36.85967613,192.83,192.82,0.03]
[1755457369766,42.04559118,192.83,192.82,0.03]
[1755457370342,60.98514483,192.83,192.82,0.03]
[1755457371045,41.10621557,192.82,192.81,1e-08]
[1755457371355,81.79922978,192.82,192.8,1e-08]
[1755457371542,41.10621557,192.79,192.78,1e-08]
[1755457371742,41.10621557,192.79,192.76,0.03]
[1755457371743,20.29374474,192.77,192.76,0.03]
[1755457371967,24.12708282,192.77,192.76,0.03]
[1755457372270,60.98675895,192.77,192.76,0.03]
[1755457372577,42.0472053,192.77,192.76,0.03]
[1755457372953,40.68622731,192.77,192.76,0.03]
[1755457373154,51.9658917,192.77,192.76,0.03]
[1755457373457,49.63024388,192.77,192.76,0.03]
[1755457373653,30.0,192.77,192.76,0.03]
[1755457373844,36.15967613,192.77,192.76,0.03]
[1755457374270,42.0472053,192.77,192.76,0.03]
[1755457374461,57.15342087,192.77,192.76,0.03]
[1755457374665,54.81608722,192.77,192.76,0.03]
[1755457374876,60.97576335,192.77,192.76,0.03]
[1755457375169,57.15342087,192.77,192.76,0.03]
[1755457375677,27.15342087,192.77,192.76,0.03]
[1755457376172,57.15342087,192.77,192.76,0.03]
[1755457376693,75.8,192.77,192.76,0.03]
[1755457376983,87.8472053,192.77,192.76,0.03]
[1755457377344,57.8472053,192.77,192.76,0.03]
[1755457377772,57.1472053,192.77,192.76,0.03]
[1755457377951,50.98752917,192.77,192.76,0.03]
[1755457378146,45.8,192.77,192.76,0.03]
[1755457378352,6.85967613,192.77,192.76,0.03]
[1755457378566,42.0472053,192.77,192.76,0.03]
[1755457378763,35.88752917,192.77,192.76,0.03]
[1755457379075,42.0472053,192.77,192.76,0.03]
[1755457379455,35.88752917,192.77,192.76,0.03]
[1755457379658,42.0472053,192.77,192.76,0.03]
[1755457379859,35.88752917,192.77,192.76,0.03]
[1755457380474,36.15967613,192.77,192.76,0.03]
[1755457380683,30.0,192.77,192.76,0.03]
[1755457381173,30.0,192.77,192.76,0.71]
[1755457381363,6.15967613,192.8,192.76,0.71]
[1755457381566,6.15967613,192.77,192.76,0.03]
[1755457381950,12.0472053,192.77,192.76,0.03]
[1755457382272,42.0472053,192.77,192.76,0.03]
[1755457383259,83.15342087,192.77,192.76,0.03]
[1755457384381,215.65342087,192.77,192.76,0.03]
[1755457385055,209.49374474,192.77,192.76,0.03]
[1755457385250,261.29342087,192.77,192.76,0.03]
[1755457385456,246.1872053,192.77,192.76,0.03]
[1755457386385,261.29342087,192.77,192.76,0.03]
[1755457386751,264.00018437,192.77,192.76,0.03]
[1755457386959,218.36018437,192.77,192.76,0.03]
[1755457387175,263.96018437,192.77,192.76,0.03]
[1755457387477,41.10621557,192.73,192.72,0.03]
[1755457387661,92.8658917,192.73,192.72,0.03]
[1755457387859,15.10621557,192.72,192.7,0.03]
[1755457388063,26.0,192.68,192.61,0.68]
[1755457388267,6.15967613,192.63,192.6,0.03]
[1755457388665,45.58,192.63,192.6,0.03]
[1755457388976,67.5458917,192.63,192.6,0.03]
[1755457389748,15.10621557,192.6,192.58,0.03]
[1755457389973,45.56,192.59,192.58,0.03]
[1755457390177,51.45237758,192.59,192.58,0.03]
[1755457390479,87.61205371,192.59,192.58,0.03]
[1755457390682,81.45237758,192.59,192.58,0.03]
[1755457390981,75.56,192.59,192.58,0.03]
[1755457391158,81.71967613,192.59,192.58,0.03]
[1755457391476,86.91205371,192.59,192.58,0.03]
[1755457391676,87.61205371,192.59,192.58,0.03]
[1755457392167,81.71967613,192.59,192.58,0.03]
[1755457392368,81.45237758,192.59,192.58,0.03]
[1755457392581,128.71826928,192.59,192.58,0.03]
[1755457393257,102.71826928,192.59,192.58,0.03]
[1755457393463,96.55859315,192.59,192.58,0.03]
[1755457393774,121.79859315,192.59,192.58,0.03]
[1755457393981,30.0,192.59,192.58,0.03]
[1755457394154,75.5,192.59,192.58,0.03]
[1755457394356,81.65967613,192.59,192.58,0.03]
[1755457394692,86.85205371,192.59,192.58,0.03]
[1755457394855,15.10621557,192.58,192.56,0.03]
[1755457395184,122.7458917,192.57,192.56,0.03]
[1755457395355,123.4558917,192.57,192.56,0.03]
[1755457396007,123.4558917,192.57,192.54,0.03]
[1755457396299,41.10621557,192.51,192.44,0.03]
[1755457396582,26.0,192.55,192.48,6.15967613]
[1755457396796,26.0,192.55,192.49,0.67]
[1755457396959,30.0,192.57,192.54,6.15967613]
[1755457397159,6.15967613,192.58,192.48,26.0]
[1755457397382,45.46,192.59,192.53,6.15967613]
[1755457397605,31.90198091,192.61,192.53,6.15967613]
[1755457397606,6.15967613,192.58,192.53,6.15967613]
[1755457397903,18.16012037,192.73,192.57,6.15967613]
[1755457398106,6.15967613,192.62,192.56,0.67]
[1755457398315,41.10621557,192.61,192.51,0.67]
[1755457398623,6.15967613,192.57,192.51,6.15967613]
[1755457398784,46.13,192.57,192.47,0.67]
[1755457398978,6.15967613,192.53,192.47,0.67]
[1755457399183,54.1260593,192.63,192.49,6.15967613]
[1755457399184,0.71,192.54,192.49,6.15967613]
[1755457399416,45.42,192.56,192.53,6.15967613]
[1755457399588,26.0,192.58,192.54,0.67]
[1755457399795,45.4,192.61,192.55,0.67]
[1755457400417,45.4,192.61,192.57,6.15967613]
[1755457400594,45.4,192.61,192.49,15.10621557]
[1755457400595,15.10621557,192.68,192.6,6.15967613]
[1755457400790,30.0,192.61,192.58,0.67]
[1755457400990,0.06,192.62,192.6,6.15967613]
[1755457401715,0.06,192.62,192.56,0.67]
[1755457401914,0.06,192.62,192.61,6.15967613]
[1755457402097,0.06,192.62,192.61,6.82967613]
[1755457402910,0.06,192.62,192.61,6.15967613]